{"text_format":"1","workbook":"xlsx","n_sheets":4,"sheets":["ORDEN DE COMPRA","Hoja1","INFORMACION DE PROVEEDORES","relacion de ordenes de compra"],"not_rendered":{"charts":0,"images":3,"macros":1,"external_links":0,"defined_names":2,"comments":0,"pivot_tables":0},"unopened":[],"bounds":{"document_bytes":16777216,"sheet_cells":100000,"rows_first":2000,"rows_last":500,"rows_between":2000,"halvings":0,"cell_chars":16384,"cell_head_chars":4096},"cells_cut":0,"cells_raw":0,"read":"whole","date_system":"1900"}

{"sheet":"ORDEN DE COMPRA","index":0,"n_rows":56,"n_cols":18,"rows_kept":56,"cut":false,"hidden":false,"merged":[[54,4,54,7],[16,1,16,4],[12,1,12,4],[11,1,11,4],[13,1,13,4],[14,1,14,4],[15,1,15,4],[1,4,1,5],[4,6,4,7],[9,0,9,4],[10,1,10,4],[5,5,7,5],[5,6,7,7]]}
[]
[null,null,null,null,"No. DE ORDEN DE COMPRA",null,"CIN-09","22",null,null,null,23]
[]
[null,null,null,null,null,null,null,null,null,null,null,null,null,null,157]
["CONSTRUCTORA INVERMEX, S.A. DE C.V.",null,null,null,null,"Fecha:","2025-09-11"]
["CIN980312AX4",null,null,null,null,"Condiciones de pago:","CRÉDITO"]
["Av. #710, Col. Central de Carga"]
["C.P. 67129 Guadalupe, N.L."]
[]
["Proveedor"]
["Razon social o Nombre comercial","JOMAR"]
["RFC:",{"$f":"VLOOKUP(B11,'INFORMACION DE PROVEEDORES'!B:J,2,0)","v":"JIN920318BL0"},null,null,null,null,null,null,null,null,null,null,null,null,null,1380.22,1180.47,{"$f":"+Q12-P12","v":-199.75}]
["Calle y numero",{"$f":"VLOOKUP(B11,'INFORMACION DE PROVEEDORES'!B2:E392,4,0)","v":0},null,null,null,null,null,null,null,null,null,null,null,null,null,4000,4000.53,0.53000000000020009]
["Colonia:",{"$f":"VLOOKUP(B11,'INFORMACION DE PROVEEDORES'!B2:D392,3,0)","v":0},null,null,null,null,null,null,null,null,null,null,null,null,null,1058.21,1176.22,118.00999999999999]
["Codigo Postal:",{"$f":"VLOOKUP(B11,'INFORMACION DE PROVEEDORES'!B2:H392,7,0)","v":0},null,null,null,null,null,null,null,null,null,null,null,null,null,1000,1075.23,75.230000000000018]
["Télefono:",{"$f":"VLOOKUP(B11,'INFORMACION DE PROVEEDORES'!B2:I392,8,0)","v":0},null,null,null,null,null,null,null,null,null,null,null,null,null,3000,3005.97,5.9699999999997999]
["CLIENTE: ",null,null,null,null,null,null,null,null,null,null,null,null,null,null,{"$f":"SUM(P12:P16)","v":10438.43},{"$f":"SUM(Q12:Q16)","v":10438.42},-1.0000000000218279E-2]
[]
["IMG/CLAVE","CANT","UNIDAD","DESCRIPCIÓN","P. UNIT.","IMPORTE"]
[null,2,"PZA","ACEITE HIDRAULICO 19 L",689.81,{"$f":"B20*E20","v":1379.62}]
[null,1,"PZA","ACEITE TRANS ATF HM9 CUBETA 19",677.8,{"$f":"B21*E21","v":677.8}]
[null,null,null,null,null,{"$f":"B22*E22","v":0}]
[null,null,null,null,null,{"$f":"B23*E23","v":0}]
[null,null,null,null,null,{"$f":"B24*E24","v":0}]
[null,null,null,null,null,{"$f":"B25*E25","v":0}]
[null,null,null,null,null,0]
[null,null,null,null,null,0]
[null,null,null,null,null,0]
[null,null,null,null,null,0]
[null,null,null,null,null,0]
[null,null,null,null,null,0]
[null,null,null,null,null,0]
[null,null,null,null,null,0]
[null,null,null,null,null,0]
[null,null,null,null,null,0]
[null,null,null,null,null,0]
[null,null,null,null,null,0]
[null,null,null,null,null,0]
[null,null,null,null,null,0]
[null,null,null,null,null,0]
[null,null,null,null,null,0]
[null,null,null,"COTIZACIÓN: "]
[null,null,null,null,"Suma",{"$f":"SUM(F20:F42)","v":2057.42}]
[null,null,null,null,"Descuento"]
[null,null,null,null,"Sub total",{"$f":"F43-F44","v":2057.42}]
[null,null,null,null,"I.V.A.",{"$f":"+F45*0.16","v":329.18720000000002}]
[null,null,null,null,"Total",{"$f":"+F45+F46","v":2386.6071999999999}]
[]
[]
[]
[]
[]
[]
[]
[]
["Solicitante",null,null,null,null,"Autorizó"]

{"sheet":"Hoja1","index":1,"n_rows":45,"n_cols":15,"rows_kept":45,"cut":false,"hidden":true,"merged":[[43,13,43,14],[7,1,7,6],[10,5,10,6],[10,13,10,14],[13,9,13,14],[14,1,14,3]]}
[null,null,null,null,null,null,null,null,null,null,"Constructora Invermex S.A de C.V.",null,null,"Orden de trabajo","  "]
[null,null,"|",null,null,null,"FOLIO ",14487,null,null,"Ave. A  # 710 y Ave. 3 Central de carga"]
[null,null,null,null,null,null,null,null,null,null,"Guadalupe, Nuevo Leon"]
[null,null,null,null,"MANIFIESTO PARA EL CONTROL",null,null,null,null,null,"C.P.67129",null,null,"FOLIO: ",14243]
[null,null,null,null,"DE DESECHOS NO PELIGROSOS"]
[null,null,null,null,"Y LIMPIEZA DE DRENAJES"]
[null,null,null,null,null,null,null,null,"NOMBRE:    ",{"$f":"B8","v":"PENSKE TRUCK ARRENDADORA DE MEXICO S.A DE C.V"}]
["CLIENTE:","PENSKE TRUCK ARRENDADORA DE MEXICO S.A DE C.V",null,null,null,null,null,null,"Departamento:"]
["LUGAR DE SERVICIO:",null,null,null,null,null,null,null,"Nombre de quien solicita:"]
[null,null,null,null,null,null,null,null,"Cargo:"]
["DOMICILIO FISCAL  ",null,null,null,"TELEFONO:",{"$f":"VLOOKUP(B8,'INFORMACION DE PROVEEDORES'!B2:H392,6,0)","v":{"$error":"#N/A"}},null,null,"fecha de la Solicitud:",null,null,null,null,"FIRMA"]
["CALLE :",{"$f":"VLOOKUP(B8,Tabla1[[RAZON SOCIAL O NOMBRE COMERCIAL]:[CONTACTO DE VENTAS]],3,0)","v":{"$error":"#N/A"}},null,null,"ESTADO:","NUEVO LEÓN"]
["COLONIA :",{"$f":"VLOOKUP(B8,Tabla1[[RAZON SOCIAL O NOMBRE COMERCIAL]:[CONTACTO DE VENTAS]],2,0)","v":{"$error":"#N/A"}},null,null,"FOLIO ECOLOGIA:   ",{"$f":"VLOOKUP(B8,Tabla1[[RAZON SOCIAL O NOMBRE COMERCIAL]:[TELEFONO]],7,0)","v":{"$error":"#N/A"}}]
["MUNICIPIO:",{"$f":"VLOOKUP(B8,Tabla1[[RAZON SOCIAL O NOMBRE COMERCIAL]:[CONTACTO DE VENTAS]],4,0)","v":{"$error":"#N/A"}},null,null,"ASESOR COMERCIAL:",{"$f":"VLOOKUP(B8,Tabla1[[RAZON SOCIAL O NOMBRE COMERCIAL]:[CONTACTO DE VENTAS]],8,0)","v":{"$error":"#N/A"}},null,null,"PARTIDA","DESCRIPCION DEL TRABAJO"]
[]
[]
["GUZZLER",null,"PIPA",null,"HIDRO",null,"VACTOR"]
["SERVICIO DE LIMPIEZA DE FOSAS SEPTICAS"]
[]
["DESCRIPCION DE RESIDUO",null,"CANTIDAD TOTAL ",null,"UNIDAD-VOLUMEN-PESO",null,"PRESENTACION(ESPECIFICA)"]
[]
[]
["            NOTA IMPORTANTE: BAJO PROTESTA DECIR VERDAD CERTIFICAMOS QUE LOS DESECHOS NO PELIGROSOS"]
["              QUE SE ENTREGAN A LA COMPAÑÍA INVERMEX SA DE CV CUMPLEN CON LOS PARAMETROS QUE",null,null,null,null,null,null,null,null,null,null,null," "]
["                 LAS AUTORIDADES AMBIENTALES HAN SOLICITADO DE NO SER ASI NOS HACEMOS ACREEDORES A LAS"]
["                           SANCIONES QUE CORRESPONDAN SEGUN LAS LEYES Y REGLAMENTOS APLICABLES "]
[]
["RESPONSABLE:",null,null,null,"FIRMA:"]
["PUESTO:",null,null,null,"HORA DE SALIDA:"]
[null,null,null,"TRANSPORTISTA"]
[]
["NOMBRE OPERADOR:",null,null,null,"FIRMA:"]
["VEHICULO",null,null,null,"FECHA DE SERVICIO:"]
["MARCA:",null,null,null,"MODELO:",null,"PLACAS:"]
["# ECONOMICO:"]
["CAP.TANQUE:"]
["HORA INICIO",null,null,null,"HORA FINAL:",null,"TOTAL HRS:"]
["KM INICIAL:",null,null,null,"KM FINAL:",null,"TOTAL KMS:",null,"OBSERVACIONES"]
[null,null,null,"DESTINATARIO:"]
["EMPRESA:",null,null,null,"FECHA Y HORA DE RECEPCION:"]
["DIRECCION:",null,null,null,"TELEFONO:"]
["RESPONSABLE:",null,null,null,"FIRMA:",null,null,null,"ENTREGO",null,null,"RECIBIO"]
["(81)9688.7618",null,"ventas@ecoseptic.mx",null,null,null,null,null,null,"Nombre:"]
[null,null,null,null,null,"www.ecoseptic.mx",null,null,null,"Fecha:"]
["Ave.A #710 y Ave.3, Central de Carga,Guadalupe N.l CP 67129",null,null,null,null,"CONSTRUCTORA INVERMEX S.A DE C.V.",null,null,"Los trabajos anteriores fueron ejecutados y recibidos a nuestra entera satisfaccion y conformidad el dia ",null,null,null,null,null," "]

{"sheet":"INFORMACION DE PROVEEDORES","index":2,"n_rows":67,"n_cols":10,"rows_kept":67,"cut":false,"hidden":false,"merged":[]}
["No. DE PROVEEDOR","RAZON SOCIAL O NOMBRE COMERCIAL","RFC","COLONIA","CALLE","MUNICIPIO","ESTADO","C.P.","TELEFONO","CONTACTO DE VENTAS"]
["P0001","AUTO ELECTRICA FIRO SA DE CV","AFI921214PM5","Fracc. La Luz","Bonifacio Salinas Leal #610","Guadalupe","Nuevo León",67120]
["P0002","COMERCIALIZADORA DE MANGUERAS Y ARTICULOS","CMA010426KU0","Fracc. La Luz","Bonifacio Salinas Leal #708","Guadalupe","Nuevo León",67120]
["P0003","JG FERRETERA","JFE1410016R4","Fracc. La Luz","Bonifacio Salinas Leal #8002","Guadalupe","Nuevo León",67129,"(81)83202011","SANDRA"]
["P0004","TRACTO REFACCIONES ALLENDE",null,"Centro","Carretera Nacional Norte 1525",null,"Nuevo León",67350,null,"Jose Roman Reyes Rodríguez"]
["P0005","MARIA DEL ROSARIO SILVA PONCE / DIESEL INTERNATIONAL","SIPR640821M37",null,null,"San Nicolás de los Garza","Nuevo León",null,null,"Teodoro"]
["P0006","KASE SOLUCIONES INTEGRALES","KSI190913593",null,"Av. México #810 Local # 8","Guadalupe","Nuevo León",67113,null,"Dario"]
["P0007","ALMA DELIA TORRES ZUÑIGA (LA VICTORIA)","TOZA721008TC1","La Victoria","Prof. Juan Guzmán 201A","Guadalupe","Nuevo León",67110,null,"Alma Torres"]
["P0008","RECICLAJES Y DESTILADOS MONTERREY"]
["P0009","OPERADORA DE RELLENOS SANITARIOS"]
["P0010","DOMINGO ISAAC GALVAN HERNANDEZ","GAHD951209QB0","Fracc. La Luz","GENERAL BONIFACIO SALINAS LEAL 702","Guadalupe","Nuevo León",67120,8125681026,"DOMINGO GALVAN"]
["P0011","TREN MOTRIZ CENTRO DE SERVICIO","TMC0703131S9","BUENOS AIRES","AV REVOLUCION 1780-A","Monterrey","Nuevo León",64800]
["P0012","IMPORT & EXPORT AIII","IAE130325KJ7","Plutarco Elias Calles","Av Abraham Lincoln No. 6905","Monterrey","Nuevo León",64108,8116310806,"PATRICIA"]
["P0013","COMISION FEDERAL DE ELECTRICIDAD (CFE)"]
["P0014","Abastecedora de Oficinas, S.A. de C.V. (ADOSA)"]
["P0015","SERVIPROF DIGITAL S.A. DE C.V."]
["P0016","SAÚL HERIBERTO VAZQUEZ VILLARREAL (BIOTEK)"]
["P0017","SYEGPS SA DE CV"]
["P0018","ABASTECIMIENTOS INDUSTRIALES REYMO, S.A. DE C.V."]
["P0019","THE HOME DEPOT MEXICO",null,"MIGUEL ALEMAN","AV. MIGUEL ALEMAN,ESQUIN AV. LAS TORRES","San Nicolás de los Garza","Nuevo León",null,8181310900]
["P0020","RECICLAJES GAP S.A.P.I. DE C.V."]
["P0021","GRUPO RAGA"]
["P0022","COMERCIALIZADORA NEHIRO DE CHICAGO"]
["P0023","MEDICAL CEMER"]
["P0024","SANIVAC DEL NORTE S.A. DE C.V. (AR Multiservicios)"]
["P0025","IZZI"]
["P0026","TELMEX"]
["P0027","SERVICIOS DE AGUA Y DRENAJE DE MONTERREY"]
["P0028","Seguridad Industrial Reyna S.A. de C.V.","SIR940804CS6","Futuro Nogalar","Av. Nogalar Sur 218","San Nicolás de los Garza","Nuevo León",66484,83507298]
["P0029","ROSA ELVA MONTEMAYOR QUIROGA (EL CHAMBEADOR)","MOQR680517IN8","PARQUES DE GUADALUPE","AV. PABLO LIVAS No. 3902","Guadalupe","Nuevo León",67180,"(81) 8479-7944"]
["P0030","JOMAR","JIN920318BL0"]
["P0031","MUELLES Y TRACTO REFACCIONES MONTERREY","MTR980303AL4","CENTRAL DE CARGA","AV. B #620","Guadalupe","Nuevo León",67129]
["P0032","CENTRAL DE RADIADORES DE MONTERREY","CRM961217A78","LA LUZ","General Bonifacio Salinas 402","Guadalupe","Nuevo León",67120]
["P0033","HERACSA"]
["P0034","GUSTAVO CISNEROS MARTINEZ","CIMG6407075H0",null,"AV. ADOLFO RUIZ CORTINEZ, No. 219","Guadalupe","Nuevo León",67120]
["P0035","FIGRA INDUSTRIAL",null,"Col. Santa Maria","Aaron Saenz 1900","Monterrey","Nuevo León",64650,8123529952,"CARLOS"]
["P0036","ULTRADEF MEXICO S.A DE C.V. (ULTRA BLUE)","UME200123F48","PARQUE LOGISTICO LOS LERMAS","AV. CENTRAL","GUADALUPE","Nuevo León",67188,null,"MARCO RODRIGUEZ"]
["P0037","ESPECIALISTAS EN PRODUCTOS DE SEGUIRIDAD INDUSTRIAL SA DE CV",null,"COL ANTONIO I VILLARREAL","PLAN DE SAN LUIS No. 201","Monterrey","Nuevo León",64390]
["P0038","FERRETERIA Y MATERIALES LA CUCHILLA","FMC110617FCA"]
["P0039","CENTRAL DE PARTES MONTERREY","CPM870309HZ5","ACERO","AV. FRANCISCO I MADERO","Monterrey","Nuevo León",67129]
["P0040","INDUSTRIAS VERMAR","IVE820430M47","ACERO","AV. CRISTOBAL COLON 2934","Monterrey","Nuevo León",66490,8183518675]
["P0041","CASA HECTOR PALACIOS Y ASOCIADOS ","CHP990915R17","TERMINAL MTY","COLON #1545","Monterrey","Nuevo León",64582,8183747548]
["P0042","INFRA","INF891031LT4","NOGALAR","LOPEZ MATEOS #622","San Nicolás de los Garza","Nuevo León",66480,8183538885]
["P0043","GOMSA CAMIONES","GCA950503PT4",null,null,"Veracruz","Veracruz",91808]
["P0044","JORGE ADRIAN MARTINEZ GARCIA (TRACTO FRENOS MARTINEZ)","MAGJ890401NJ5",null,"CARR. NACIONAL 106","ALLENDE","Nuevo León",67350]
["P0045","PIPAS Y TANQUES REFACCIONES SA DE CV","PTR180212HP2","VILLAS DEL RIO","AV. PROL. ADOLFO RUIZ CORTINEZ 360","Guadalupe","Nuevo León",67112,8124738658]
["P0046","HERBERT LOPEZ BENAVIDES","LOBH9509097D0",null,null,null,null,64000]
["P0047","J.G.C. FERRETERIA",null,"HDA. DEL SOL","AV HDA. DEL SOL #101"]
["P0048","DISTRIBUIDORA DE BIRLOS Y TORNILLO ERGAR","DBT900709BL6",null,null,null,null,67120]
["P0049","AUTOZONE DE MEXICO SA DE CV","AME970109GW0","HDA. LOS MORALES ","AV. ROMULO GARZA #200","San Nicolás de los Garza","Nuevo León",66495]
["P0050","GASTON CARAMON RENDON","CARG621108956",null,null,null,null,91820]
["P0051","CONSORCIO INDUSTRIAL CADEREYTA SA DE CV",null,"VETERANOS","MUTUALISMO #700","CADEREYTA JIMENEZ","Nuevo León",67450,8282811835]
["P0052","TRACTORES Y MAQUINARIA REAL","TMR9002239E7","LA FE","CARR. MIGUEL ALEMAN #102","San Nicolás de los Garza","Nuevo León",66477]
["P0053","TRACTO ACCESORIOS DEL NORESTE","TAN940318985","AMERICA OBRERA","RUIZ CORTINEZ 204 OTE","Guadalupe","Nuevo León",67120]
["P0054","ISRRAEL NUÑEZ SANCHEZ","NUSI810623VC2",null,null,null,null,67110]
["P0055","RODRIGO ORTEGA CESEÑA","OECR750915PXA",null,null,null,null,67129]
["P0056","JUAN JAVIER GOMEZ LLAMAS","GOLJ780829714",null,null,null,null,67129]
["P0057","SKYLIFT","SKY121016E3A","CENTRAL DE CARGA","AVE. A, No. Ext 695","Guadalupe","Nuevo León",67129]
["P0058","RODRIGO ORTEGA CESEÑA","OECR750915PXA"]
["P0059","OFFICE DEPOT","ODM950324V2A","GRANADA","AV EJERCITO NACIONAL MEXICANO  769","MIGUEL HIDALGO","MEXICO",11520]
["P0060","ULINE SHIPPING SUPPLIES","USS00007118PA0","PROLOGIS","CARR MIGUEL ALEMAN KM21 #6","APODACA","Nuevo León",66627]
["P0061","MERCADO DE PLÁSTICOS, SA DE CV","MPL70100182A","Centro","Ave. Madero No. 1363 Ote.","Monterrey,","Nuevo León",64000]
["P0062","Uniformes Everest",null,null,"Sonora 715, colonia Nuevo Repueblo","Monterrey","Nuevo León",64700]
["P0063","UNIFORMES DE TAMPICO",null,"LINDA VISTA","CARRETERA MIGUEL ALEMAN 4425",null,"Nuevo León",67130]
["P0064","MRO Guzcer","MGU240327B21","Valle de San Rafael","Aquamarina # 4345 ","Guadalupe","Nuevo León",67114,8123621347]
["P0065","PANEL REY","PRE 820415237"]
["P0066","EQUIPOS Y HERRAMIENTAS HIDRAULICAS DE MONTERREY","EHH071207TS8","DEL NORTE ","DOLORES LADRON DE GUEVARA OTE 1125","MONTERREY","Nuevo León",64500]

{"sheet":"relacion de ordenes de compra","index":3,"n_rows":44,"n_cols":6,"rows_kept":44,"cut":false,"hidden":false,"merged":[]}
["N°. Orden de Compra","Empresa","Importe","Contado/Crédito","FECHA DE EMISION","FECHA DE VENCIMIENTO"]
["CIN07-74","COMASA",3801.16,"Crédito"]
["CIN07-75","FIRO",350.78,"Crédito"]
["CIN08-01","KASE",7145.6,"Crédito"]
["CIN08-02","KASE",7145.6,"Crédito"]
["CIN08-03","COMASA3",1454.35,"Crédito"]
["CIN08-04","INDUSTRIAS VERMAR",1080.74,"Contado"]
["CIN08-05","THE HOME DEPOT",10128.280000000001,"Crédito"]
["CIN08-06","EL CHAMBEADOR (ROSA ELVA MONTEMAYOR QUIROGA)",1392,"Crédito"]
["CIN08-07","MRO GUZCER",8792.7999999999993,"Contado"]
["CIN08-08","JG FERRETERA",3875.04,"Crédito"]
["CIN08-09","PANEL REY",3500.32,"Contado"]
["CIN08-10","JG FERRETERA",8207,"Crédito"]
["CIN08-11","THE HOME DEPOT",3284.01,"Crédito"]
["CIN08-12","JG FERRETERA",729.18,"Crédito"]
["CIN08-13","JG FERRETERA",1349.42,"Crédito"]
["CIN08-14","COMASA",5573.86,"Crédito"]
["CIN08-15","ULTRADEF",3770,"Crédito"]
["CIN08-16","KASE SOLUCIONES",17516,"Crédito"]
["CIN08-17","COMASA",2938.42,"Crédito"]
["CIN08-18","EQUIPOS Y HERRA HIDRAU MTY",6670,"Contado"]
["CIN08-19","JG FERRETERA",378,"Credito"]
["CIN08-20","ULINE",791.12,"Contado"]
["CIN08-21","JG FERRETERA",1144.92,"Crédito"]
["CIN08-22","COMASA",6804.72,"Crédito"]
[]
["CIN09-16","JG FERRETERA",981.98,"Crédito","2025-09-08","2025-10-08"]
["CIN09-17","AUTOELECTRICA FIRO",1181.67,"Crédito","2025-09-08","2025-10-08"]
["CIN09-18","COMASA",2094.36,"Crédito","2025-09-08","2025-10-08"]
["CIN09-19","ROSA ELVA MONTEMAYOR QUIROGA",3852.36,"Crédito","2025-09-08","2025-10-08"]
["CIN09-20","MRO GUZCER",4396.3999999999996,"Crédito","2025-09-09","2025-10-09"]
["CIN09-21","THE HOME DEPOT",4182.6499999999996,"Crédito","2025-09-11","2025-10-11"]
["CIN09-22","JOMAR",2386.61,"Crédito","2025-09-11","2025-10-11"]
["CIN09-23"]
["CIN09-24"]
["CIN09-25"]
["CIN09-26"]
["CIN09-27"]
["CIN09-28"]
["CIN09-29"]
["CIN09-30"]
["CIN09-31"]
["CIN09-32"]
["CIN09-33"]